[Event "Prague Festival Future 2020"]
[Site "Prague"]
[Date "2020.02.14"]
[Round "3.4"]
[White "Vagman, Roy"]
[Black "Klimkowski, Jan"]
[Result "1-0"]
[ECO "E98"]
[WhiteElo "2141"]
[BlackElo "2229"]
[Annotator "RC"]
[PlyCount "91"]
[EventDate "2020.02.12"]
[EventType "tourn"]
[EventCountry "CZE"]
[SourceTitle "playchess.com"]
[Source "ChessBase"]
[SourceQuality "1"]
[TimeControl "40/5400+30:1800+30"]

1. d4 {[%emt 0:00:00]} Nf6 {[%emt 0:00:00]} 2. c4 {[%emt 0:00:00]} g6 {[%emt 0:00:00]} 3. Nc3 {[%emt 0:00:00]} Bg7 {[%emt 0:00:00]} 4. e4 {[%emt 0:00:13]} d6 {[%emt 0:00:00]} 5. Nf3 {[%emt 0:00:30]} O-O {[%emt 0:00:08]} 6. Be2 {[%emt 0:00:08]} e5 {[%emt 0:00:10]} 7. O-O {[%emt 0:00:24]} Nc6 {[%emt 0:00:06]} 8. d5 {[%emt 0:00:14]} Ne7 {[%emt 0:00:08]} 9. Ne1 {[%emt 0:00:26]} Ne8 {[%emt 0:00:41]} 10. f3 {[%emt 0:00:21]} f5 {[%emt 0:00:21]} 11. g4 {[%emt 0:01:00]} Nf6 {[%emt 0:03:56]} 12. Nd3 {[%emt 0:07:07]} Qd7 {[%emt 0:03:27]} 13. exf5 {[%emt 0:28:55]} gxf5 {[%emt 0:00:36]} 14. g5 {[%emt 0:00:01]} Ne8 {[%emt 0:03:59]} 15. f4 {[%emt 0:00:19]} Ng6 {[%emt 0:02:39]} 16. Be3 {[%emt 0:02:32]} e4 {[%emt 0:09:25]} 17. Ne1 {[%emt 0:06:55]} c5 {[%emt 0:00:55]} 18. Ng2 {[%emt 0:10:43]} Nc7 {[%emt 0:03:36]} 19. Rb1 {[%emt 0:07:26]} a6 {[%emt 0:04:14]} 20. Na4 {[%emt 0:01:57]} Rb8 {[%emt 0:06:34]} 21. b4 {[%emt 0:02:52]} Bd4 {[%emt 0:06:52]} 22. bxc5 {[%emt 0:13:32]} dxc5 {[%emt 0:00:29]} 23. Nxc5 {[%emt 0:10:48]} Bxe3+ {[%emt 0:01:33]} 24. Nxe3 {[%emt 0:00:01]} Qd6 {[%emt 0:03:32]} 25. Nb3 {[%emt 0:00:01]} Nxf4 {[%emt 0:05:08]} 26. c5 {[%emt 0:00:02]} Nxe2+ {[%emt 0:04:25]} 27. Qxe2 {[%emt 0:00:01]} Qg6 {[%emt 0:01:37]} 28. Rf4 {[%emt 0:01:31]} h6 {[%emt 0:03:33]} 29. Qg2 {[%emt 0:03:04]} hxg5 {[%emt 0:01:59]} 30. h4 {[%emt 0:00:01]} b6 {[%emt 0:07:59]} 31. c6 {[%emt 0:01:25]} Kh7 {[%emt 0:02:09]} 32. hxg5 {[%emt 0:01:54]} Nb5 {[%emt 0:01:51]} 33. a4 {[%emt 0:01:08]} Nc7 {[%emt 0:03:30]} 34. Rh4+ {[%emt 0:00:42]} Kg8 {[%emt 0:00:50]} 35. Rh6 {[%emt 0:00:05]} Qg7 {[%emt 0:01:29]} 36. d6 {[%emt 0:00:27]} Ne6 {[%emt 0:01:05]} 37. Nd5 {[%emt 0:00:33]} Qe5 {[%emt 0:04:43]} 38. Nf6+ {[%emt 0:01:07]} Kg7 {[%emt 0:01:49]} 39. Rh7+ {[%emt 0:00:08]} Kg6 {[%emt 0:00:05]} 40. Qh3 {[%emt 0:00:00]} f4 {[%emt 0:00:00]} 41. Qh5+ {[%emt 0:06:17]} Kf5 {[%emt 0:00:30]} 42. Rh6 {[%emt 0:02:52]} Qc3 {[%emt 0:03:47]} 43. Qg6+ {[%emt 0:01:31]} Ke5 {[%emt 0:00:12]} 44. Qxe4+ {[%emt 0:00:22]} Kxd6 {[%emt 0:00:04]} 45. Rd1+ {[%emt 0:00:10]} Ke7 {[%emt 0:00:29]} 46. Nd5+ {[%emt 0:01:13]} 1-0

[Event "Prague Festival Future 2020"]
[Site "Prague"]
[Date "2020.02.15"]
[Round "4.1"]
[White "Klimkowski, Jan"]
[Black "Nemec, Jachym"]
[Result "1/2-1/2"]
[ECO "B33"]
[WhiteElo "2229"]
[BlackElo "2069"]
[Annotator "ChessBase"]
[PlyCount "125"]
[EventDate "2020.02.12"]
[EventType "tourn"]
[EventCountry "CZE"]
[SourceTitle "playchess.com"]
[Source "ChessBase"]
[SourceQuality "1"]
[TimeControl "40/5400+30:1800+30"]

1. e4 {[%emt 0:00:00]} c5 {[%emt 0:00:00]} 2. Nf3 {[%emt 0:00:00]} Nc6 {[%emt 0:00:00]} 3. d4 {[%emt 0:00:00]} cxd4 {[%emt 0:00:00]} 4. Nxd4 {[%emt 0:00:00]} Nf6 {[%emt 0:00:03]} 5. Nc3 {[%emt 0:00:00]} e5 {[%emt 0:00:06]} 6. Ndb5 {[%emt 0:00:01]} d6 {[%emt 0:00:10]} 7. Bg5 {[%emt 0:00:21]} a6 {[%emt 0:00:07]} 8. Na3 {[%emt 0:00:05]} b5 {[%emt 0:00:06]} 9. Nd5 {[%emt 0:00:06]} Be7 {[%emt 0:00:06]} 10. Bxf6 {[%emt 0:00:06]} Bxf6 {[%emt 0:00:07]} 11. c3 {[%emt 0:00:03]} O-O {[%emt 0:00:16]} 12. Nc2 {[%emt 0:00:08]} Rb8 {[%emt 0:00:07]} 13. a4 {[%emt 0:03:23]} bxa4 {[%emt 0:00:17]} 14. Ncb4 {[%emt 0:05:27]} Nxb4 {[%emt 0:00:08]} 15. cxb4 {[%emt 0:04:34]} Bb7 {[%emt 0:00:18]} 16. Rxa4 {[%emt 0:03:41]} Qc8 {[%emt 0:00:11]} 17. Be2 {[%emt 0:10:35]} Bxd5 {[%emt 0:00:48]} 18. exd5 {[%emt 0:00:28]} Rb6 {[%emt 0:00:13]} 19. O-O {[%emt 0:01:26]} Qb7 {[%emt 0:00:26]} 20. b3 {[%emt 0:05:04]} Rxb4 {[%emt 0:03:55]} 21. Bxa6 {[%emt 0:01:37]} Qb6 {[%emt 0:00:40]} 22. Rxb4 {[%emt 0:03:02]} Qxb4 {[%emt 0:00:17]} 23. Bc4 {[%emt 0:00:36]} Ra8 {[%emt 0:01:19]} 24. Qg4 {[%emt 0:00:35]} g6 {[%emt 0:10:13]} 25. h4 {[%emt 0:05:59]} h5 {[%emt 0:06:46]} 26. Qe4 {[%emt 0:01:44]} Qd2 {[%emt 0:01:31]} 27. g3 {[%emt 0:03:50]} Ra2 {[%emt 0:02:25]} 28. Qe1 {[%emt 0:06:27]} Bd8 {[%emt 0:07:13]} 29. Qxd2 {[%emt 0:01:29]} Rxd2 {[%emt 0:00:06]} 30. Re1 {[%emt 0:00:04]} Bb6 {[%emt 0:00:09]} 31. Re2 {[%emt 0:00:05]} Rxe2 {[%emt 0:00:16]} 32. Bxe2 {[%emt 0:03:35]} Bc5 {[%emt 0:02:43]} 33. Kg2 {[%emt 0:00:24]} Kg7 {[%emt 0:01:37]} 34. f3 {[%emt 0:02:17]} f5 {[%emt 0:02:10]} 35. Bb5 {[%emt 0:03:03]} Kf6 {[%emt 0:00:14]} 36. Be8 {[%emt 0:00:07]} Bb4 {[%emt 0:00:30]} 37. Kf2 {[%emt 0:01:16]} Bc5+ {[%emt 0:00:12]} 38. Ke2 {[%emt 0:00:59]} Bb4 {[%emt 0:02:01]} 39. Bd7 {[%emt 0:07:34]} Bc5 {[%emt 0:01:00]} 40. Be8 {[%emt 0:00:00]} Bb4 {[%emt 0:00:00]} 41. Kf2 {[%emt 0:02:01]} Bc5+ {[%emt 0:00:36]} 42. Kg2 {[%emt 0:00:20]} Bb4 {[%emt 0:03:18]} 43. Kh3 {[%emt 0:04:29]} Be1 {[%emt 0:00:19]} 44. Bd7 {[%emt 0:03:45]} Ke7 {[%emt 0:00:42]} 45. Be6 {[%emt 0:00:20]} Kf6 {[%emt 0:00:05]} 46. Bc8 {[%emt 0:03:51]} Ke7 {[%emt 0:00:52]} 47. Be6 {[%emt 0:00:05]} Kf6 {[%emt 0:00:13]} 48. Bd7 {[%emt 0:00:03]} Ke7 {[%emt 0:00:08]} 49. Bc8 {[%emt 0:00:04]} Kd8 {[%emt 0:00:31]} 50. Be6 {[%emt 0:01:50]} Ke7 {[%emt 0:00:08]} 51. g4 {[%emt 0:02:49]} fxg4+ {[%emt 0:00:25]} 52. fxg4 {[%emt 0:00:11]} hxg4+ {[%emt 0:00:05]} 53. Kxg4 {[%emt 0:01:20]} Kf6 {[%emt 0:00:06]} 54. Bd7 {[%emt 0:00:28]} Bb4 {[%emt 0:00:07]} 55. Bb5 {[%emt 0:00:27]} Be1 {[%emt 0:00:09]} 56. Bd3 {[%emt 0:00:03]} Bb4 {[%emt 0:00:10]} 57. Bc2 {[%emt 0:00:19]} Be1 {[%emt 0:00:11]} 58. Be4 {[%emt 0:00:03]} Bb4 {[%emt 0:00:16]} 59. Kf3 {[%emt 0:00:57]} Be1 {[%emt 0:00:12]} 60. Ke2 {[%emt 0:00:57]} Bxh4 {[%emt 0:00:18]} 61. b4 {[%emt 0:00:03]} Ke7 {[%emt 0:00:09]} 62. Bxg6 {[%emt 0:00:06]} Kd7 {[%emt 0:00:06]} 63. Ke3 1/2-1/2

[Event "Prague Festival Future 2020"]
[Site "Prague"]
[Date "2020.02.15"]
[Round "4.2"]
[White "Chinguun Bayaraa"]
[Black "Finek, Vaclav"]
[Result "1-0"]
[ECO "A06"]
[WhiteElo "2049"]
[BlackElo "2220"]
[Annotator "ChessBase"]
[PlyCount "143"]
[EventDate "2020.02.12"]
[EventType "tourn"]
[EventCountry "CZE"]
[SourceTitle "playchess.com"]
[Source "ChessBase"]
[SourceQuality "1"]
[TimeControl "40/5400+30:1800+30"]

1. d3 {[%emt 0:00:12]} d5 {[%emt 0:00:00]} 2. Nf3 {[%emt 0:00:06]} Nf6 {[%emt 0:00:24]} 3. g3 {[%emt 0:00:05]} g6 {[%emt 0:00:41]} 4. Bg2 {[%emt 0:00:06]} Bg7 {[%emt 0:00:04]} 5. O-O {[%emt 0:00:24]} O-O {[%emt 0:00:33]} 6. Nbd2 {[%emt 0:00:41]} Nbd7 {[%emt 0:01:32]} 7. e4 {[%emt 0:01:15]} dxe4 {[%emt 0:00:29]} 8. dxe4 {[%emt 0:01:19]} e5 {[%emt 0:01:33]} 9. c3 {[%emt 0:01:08]} Qe7 {[%emt 0:02:25]} 10. Qc2 {[%emt 0:00:38]} b6 {[%emt 0:03:02]} 11. b4 {[%emt 0:04:06]} Ba6 {[%emt 0:04:20]} 12. Re1 {[%emt 0:01:58]} Rfd8 {[%emt 0:00:44]} 13. a4 {[%emt 0:00:36]} Bb7 {[%emt 0:03:52]} 14. Ba3 {[%emt 0:03:12]} a6 {[%emt 0:03:37]} 15. Bf1 {[%emt 0:08:08]} Qe8 {[%emt 0:03:54]} 16. Bc4 {[%emt 0:03:02]} h6 {[%emt 0:01:56]} 17. Nh4 {[%emt 0:07:37]} Nf8 {[%emt 0:01:13]} 18. Ndf3 {[%emt 0:15:25]} b5 {[%emt 0:09:24]} 19. Bb3 {[%emt 0:02:18]} Bc8 {[%emt 0:06:59]} 20. Bb2 {[%emt 0:02:13]} Bg4 {[%emt 0:03:23]} 21. Kg2 {[%emt 0:14:54]} Qe7 {[%emt 0:09:57]} 22. h3 {[%emt 0:02:14]} Be6 {[%emt 0:04:02]} 23. c4 {[%emt 0:09:50]} bxa4 {[%emt 0:04:59]} 24. Rxa4 {[%emt 0:06:52]} N6d7 {[%emt 0:08:06]} 25. c5 {[%emt 0:01:31]} Bxb3 {[%emt 0:02:19]} 26. Qxb3 {[%emt 0:00:07]} a5 27. c6 {[%emt 0:00:50]} Nf6 {[%emt 0:05:33]} 28. Rxa5 {[%emt 0:03:53]} Rab8 {[%emt 0:04:28]} 29. Bc3 {[%emt 0:02:12]} Ne6 {[%emt 0:02:50]} 30. Nxe5 {[%emt 0:01:42]} Kh7 {[%emt 0:00:40]} 31. Nhf3 {[%emt 0:00:57]} Rf8 {[%emt 0:02:08]} 32. Qc4 {[%emt 0:00:44]} Rbd8 {[%emt 0:01:02]} 33. Ra7 {[%emt 0:01:15]} g5 {[%emt 0:01:24]} 34. b5 {[%emt 0:00:46]} Qe8 {[%emt 0:00:49]} 35. Bb4 {[%emt 0:01:05]} Rg8 {[%emt 0:00:04]} 36. b6 {[%emt 0:00:28]} Nh5 {[%emt 0:00:45]} 37. Nd7 {[%emt 0:01:55]} cxb6 {[%emt 0:01:23]} 38. e5 {[%emt 0:00:28]} Bh8 {[%emt 0:01:26]} 39. Qe4+ {[%emt 0:00:19]} Rg6 {[%emt 0:00:16]} 40. Kh2 {[%emt 0:00:00]} Kg8 {[%emt 0:00:00]} 41. Nxb6 {[%emt 0:02:45]} f5 {[%emt 0:04:39]} 42. exf6 {[%emt 0:01:15]} Nxf6 {[%emt 0:01:10]} 43. Qxe6+ {[%emt 0:01:02]} Qxe6 {[%emt 0:00:06]} 44. Rxe6 {[%emt 0:00:04]} Ng4+ {[%emt 0:00:23]} 45. hxg4 {[%emt 0:00:40]} Rxe6 {[%emt 0:00:01]} 46. c7 {[%emt 0:00:13]} Ree8 {[%emt 0:00:18]} 47. cxd8=Q {[%emt 0:00:10]} Rxd8 {[%emt 0:00:50]} 48. Ra8 {[%emt 0:00:33]} Rxa8 {[%emt 0:00:06]} 49. Nxa8 {[%emt 0:00:03]} Bf6 {[%emt 0:00:13]} 50. Nc7 {[%emt 0:00:02]} Kf7 {[%emt 0:00:09]} 51. Nd5 {[%emt 0:00:06]} Bg7 {[%emt 0:00:04]} 52. Bd2 {[%emt 0:00:03]} Ke6 {[%emt 0:00:09]} 53. Nb4 {[%emt 0:00:13]} Bf6 {[%emt 0:00:06]} 54. Nc2 {[%emt 0:00:38]} Kd5 {[%emt 0:00:08]} 55. Kg2 {[%emt 0:00:36]} Ke4 {[%emt 0:00:16]} 56. Ne3 {[%emt 0:00:37]} Bd8 {[%emt 0:00:29]} 57. Nf5 {[%emt 0:00:06]} h5 {[%emt 0:00:05]} 58. Nxg5+ {[%emt 0:00:06]} Kd3 {[%emt 0:00:13]} 59. gxh5 {[%emt 0:00:18]} Kxd2 {[%emt 0:00:07]} 60. Ne6 {[%emt 0:00:08]} Bf6 {[%emt 0:00:06]} 61. Nfg7 {[%emt 0:00:07]} Ke2 {[%emt 0:00:18]} 62. h6 {[%emt 0:00:08]} Bc3 {[%emt 0:00:05]} 63. h7 {[%emt 0:00:05]} Be1 {[%emt 0:00:05]} 64. Nf4+ {[%emt 0:00:04]} Kd2 {[%emt 0:00:06]} 65. h8=Q {[%emt 0:00:08]} Bxf2 {[%emt 0:00:05]} 66. Qd8+ {[%emt 0:00:06]} Kc3 {[%emt 0:00:09]} 67. Qd3+ {[%emt 0:00:04]} Kb4 {[%emt 0:00:07]} 68. Kxf2 {[%emt 0:00:08]} Kc5 {[%emt 0:00:03]} 69. Nge6+ {[%emt 0:00:06]} Kb4 {[%emt 0:00:08]} 70. Nd5+ {[%emt 0:00:05]} Ka5 {[%emt 0:00:13]} 71. Qb1 {[%emt 0:00:24]} Ka6 {[%emt 0:00:05]} 72. Qb6# {[%emt 0:00:06]} 1-0

[Event "Prague Festival Future 2020"]
[Site "Prague"]
[Date "2020.02.15"]
[Round "4.3"]
[White "Aydin, Gulenay"]
[Black "Vagman, Roy"]
[Result "0-1"]
[ECO "B28"]
[WhiteElo "1964"]
[BlackElo "2141"]
[Annotator "ChessBase"]
[PlyCount "74"]
[EventDate "2020.02.12"]
[EventType "tourn"]
[EventCountry "CZE"]
[SourceTitle "playchess.com"]
[Source "ChessBase"]
[SourceQuality "1"]
[TimeControl "40/5400+30:1800+30"]

1. e4 {[%emt 0:00:00]} c5 {[%emt 0:00:00]} 2. Nf3 {[%emt 0:00:00]} a6 {[%emt 0:00:13]} 3. c3 {[%emt 0:03:45]} d5 {[%emt 0:00:11]} 4. exd5 {[%emt 0:01:34]} Qxd5 {[%emt 0:00:14]} 5. d4 {[%emt 0:00:06]} Nf6 {[%emt 0:00:20]} 6. Be2 {[%emt 0:02:09]} cxd4 {[%emt 0:01:02]} 7. cxd4 {[%emt 0:00:51]} Nc6 {[%emt 0:00:28]} 8. O-O {[%emt 0:02:33]} e6 {[%emt 0:01:12]} 9. Nc3 {[%emt 0:03:06]} Qd6 {[%emt 0:00:21]} 10. Bg5 {[%emt 0:04:51]} Be7 {[%emt 0:01:21]} 11. Qd2 {[%emt 0:02:54]} O-O {[%emt 0:02:34]} 12. Rad1 {[%emt 0:04:28]} Nb4 {[%emt 0:01:48]} 13. Rfe1 {[%emt 0:08:58]} Nbd5 {[%emt 0:02:08]} 14. Ne5 {[%emt 0:05:53]} Rd8 {[%emt 0:24:46]} 15. Bf3 {[%emt 0:03:58]} Nxc3 {[%emt 0:16:29]} 16. bxc3 {[%emt 0:03:52]} Nd5 {[%emt 0:00:33]} 17. Bxe7 {[%emt 0:09:49]} Nxe7 {[%emt 0:00:41]} 18. Be4 {[%emt 0:05:40]} Ng6 {[%emt 0:02:15]} 19. Nd3 {[%emt 0:07:23]} Rb8 {[%emt 0:01:06]} 20. Rb1 {[%emt 0:00:34]} f5 {[%emt 0:01:56]} 21. Bf3 {[%emt 0:02:16]} e5 {[%emt 0:01:07]} 22. Bh5 {[%emt 0:02:56]} e4 {[%emt 0:03:10]} 23. Bxg6 {[%emt 0:01:27]} hxg6 {[%emt 0:00:23]} 24. Nf4 {[%emt 0:00:25]} g5 {[%emt 0:01:18]} 25. Ne2 {[%emt 0:03:33]} f4 {[%emt 0:01:53]} 26. h4 {[%emt 0:02:39]} Bf5 {[%emt 0:03:15]} 27. Rbd1 {[%emt 0:07:16]} Rf8 {[%emt 0:06:55]} 28. hxg5 {[%emt 0:02:14]} Bg6 {[%emt 0:00:02]} 29. d5 {[%emt 0:01:48]} Rbe8 {[%emt 0:04:04]} 30. Qd4 {[%emt 0:02:41]} b5 {[%emt 0:04:19]} 31. c4 {[%emt 0:02:11]} bxc4 {[%emt 0:00:31]} 32. Qxc4 {[%emt 0:02:25]} f3 {[%emt 0:00:01]} 33. Ng3 {[%emt 0:00:47]} e3 {[%emt 0:02:12]} 34. Qh4 {[%emt 0:01:14]} Rf4 {[%emt 0:00:41]} 35. Qh3 {[%emt 0:00:36]} exf2+ {[%emt 0:00:17]} 36. Kxf2 {[%emt 0:00:14]} Qc5+ {[%emt 0:00:01]} 37. Kf1 {[%emt 0:00:13]} fxg2+ {[%emt 0:00:08]} 0-1

[Event "Prague Festival Future 2020"]
[Site "Prague"]
[Date "2020.02.15"]
[Round "4.4"]
[White "Gurel, Ediz"]
[Black "Brozka, Karel"]
[Result "1-0"]
[ECO "B01"]
[WhiteElo "2125"]
[BlackElo "2045"]
[Annotator "NA"]
[PlyCount "103"]
[EventDate "2020.02.12"]
[EventType "tourn"]
[EventCountry "CZE"]
[SourceTitle "playchess.com"]
[Source "ChessBase"]
[SourceQuality "1"]
[TimeControl "40/5400+30:1800+30"]

1. e4 {[%emt 0:00:01]} d5 {[%emt 0:00:00]} 2. exd5 {[%emt 0:00:45]} Qxd5 {[%emt 0:00:03]} 3. Nc3 {[%emt 0:00:54]} Qa5 {[%emt 0:00:18]} 4. d4 {[%emt 0:00:27]} Nf6 {[%emt 0:00:25]} 5. Nf3 {[%emt 0:01:38]} c6 {[%emt 0:01:07]} 6. Bc4 {[%emt 0:01:01]} Bf5 {[%emt 0:01:12]} 7. O-O {[%emt 0:00:59]} e6 {[%emt 0:00:39]} 8. Ne5 {[%emt 0:02:11]} Bb4 {[%emt 0:03:59]} 9. Bd2 $11 {[%emt 0:02:34]} Nbd7 {[%emt 0:01:37]} 10. a3 {[%emt 0:02:47]} Bxc3 {[%emt 0:03:01]} 11. Bxc3 {[%emt 0:01:00]} Qc7 {[%emt 0:00:42]} 12. Nxd7 {[%emt 0:11:58]} Qxd7 {[%emt 0:02:32]} 13. Re1 {[%emt 0:07:29]} O-O {[%emt 0:03:22]} 14. b3 {[%emt 0:06:59]} Rfd8 {[%emt 0:03:25]} 15. Bb2 {[%emt 0:03:37]} Qc7 {[%emt 0:02:20]} 16. Qc1 {[%emt 0:09:47]} h6 {[%emt 0:08:44]} 17. Bf1 {[%emt 0:03:56]} Rd7 {[%emt 0:06:26]} 18. h3 {[%emt 0:02:13]} Rad8 {[%emt 0:03:15]} 19. c4 {[%emt 0:04:32]} Ne4 {[%emt 0:14:23]} 20. g4 {[%emt 0:08:24]} Bg6 {[%emt 0:10:06]} 21. Bg2 {[%emt 0:00:12]} Nd6 {[%emt 0:01:14]} 22. Qc3 {[%emt 0:02:13]} Ne8 {[%emt 0:02:52]} 23. Rad1 {[%emt 0:05:40]} e5 {[%emt 0:03:55]} 24. d5 {[%emt 0:01:50]} f6 {[%emt 0:00:43]} 25. Qc1 {[%emt 0:03:19]} c5 {[%emt 0:07:58]} 26. h4 {[%emt 0:02:44]} Nd6 {[%emt 0:03:18]} 27. f4 {[%emt 0:03:10]} exf4 {[%emt 0:01:28]} 28. Qxf4 {[%emt 0:00:09]} Nf7 {[%emt 0:03:46]} 29. Qf2 {[%emt 0:02:07]} Re7 {[%emt 0:04:03]} 30. Rxe7 {[%emt 0:01:11]} Qxe7 {[%emt 0:00:02]} 31. Re1 {[%emt 0:00:07]} Ne5 {[%emt 0:01:38]} 32. g5 {[%emt 0:02:27]} hxg5 {[%emt 0:00:29]} 33. hxg5 {[%emt 0:00:10]} Re8 {[%emt 0:00:14]} 34. Re3 {[%emt 0:03:40]} Qd6 {[%emt 0:01:10]} 35. Qg3 {[%emt 0:00:35]} Kh7 {[%emt 0:02:38]} 36. Bh3 {[%emt 0:01:25]} b5 {[%emt 0:01:33]} 37. Be6 {[%emt 0:00:54]} Rxe6 {[%emt 0:01:08]} 38. Qh3+ {[%emt 0:00:04]} Kg8 {[%emt 0:00:07]} 39. Qxe6+ {[%emt 0:00:05]} Qxe6 {[%emt 0:00:14]} 40. dxe6 {[%emt 0:00:00]} bxc4 {[%emt 0:00:00]} 41. Bxe5 {[%emt 0:00:33]} fxe5 {[%emt 0:01:09]} 42. bxc4 {[%emt 0:00:04]} e4 {[%emt 0:01:28]} 43. Rb3 {[%emt 0:01:39]} Kf8 {[%emt 0:00:42]} 44. Kf2 {[%emt 0:01:13]} Ke7 {[%emt 0:01:48]} 45. Rb7+ {[%emt 0:00:05]} Kxe6 {[%emt 0:00:13]} 46. Rxg7 {[%emt 0:00:33]} Kf5 {[%emt 0:01:29]} 47. Ke3 {[%emt 0:00:42]} Be8 {[%emt 0:00:54]} 48. Rxa7 {[%emt 0:00:15]} Kxg5 {[%emt 0:00:04]} 49. Kxe4 {[%emt 0:00:08]} Bc6+ {[%emt 0:00:20]} 50. Ke5 {[%emt 0:00:04]} Bf3 {[%emt 0:00:28]} 51. Rc7 {[%emt 0:00:13]} Be2 {[%emt 0:00:42]} 52. Rxc5 {[%emt 0:00:19]} 1-0

[Event "Prague Festival Future 2020"]
[Site "Prague"]
[Date "2020.02.15"]
[Round "4.5"]
[White "Nadzamova, Viktoria"]
[Black "Kanov, Nikola"]
[Result "1/2-1/2"]
[ECO "C17"]
[WhiteElo "1960"]
[BlackElo "2129"]
[Annotator "ChessBase"]
[PlyCount "87"]
[EventDate "2020.02.12"]
[EventType "tourn"]
[EventCountry "CZE"]
[SourceTitle "playchess.com"]
[Source "ChessBase"]
[SourceQuality "1"]
[TimeControl "40/5400+30:1800+30"]

1. e4 {[%emt 0:00:00]} e6 {[%emt 0:00:00]} 2. d4 {[%emt 0:00:00]} d5 {[%emt 0:00:00]} 3. Nc3 {[%emt 0:00:00]} Bb4 {[%emt 0:00:00]} 4. e5 {[%emt 0:00:04]} c5 {[%emt 0:00:16]} 5. Bd2 {[%emt 0:00:19]} Ne7 {[%emt 0:00:32]} 6. Nb5 {[%emt 0:00:39]} Bxd2+ {[%emt 0:00:11]} 7. Qxd2 {[%emt 0:00:08]} O-O {[%emt 0:00:32]} 8. f4 {[%emt 0:03:03]} cxd4 {[%emt 0:00:18]} 9. Nxd4 {[%emt 0:00:51]} Nbc6 {[%emt 0:01:32]} 10. Ngf3 {[%emt 0:01:08]} Qb6 {[%emt 0:01:10]} 11. O-O-O {[%emt 0:02:48]} Bd7 {[%emt 0:01:43]} 12. Kb1 {[%emt 0:06:36]} Rac8 {[%emt 0:01:25]} 13. Nxc6 {[%emt 0:08:22]} bxc6 {[%emt 0:02:09]} 14. h4 {[%emt 0:04:10]} c5 {[%emt 0:02:16]} 15. g4 {[%emt 0:09:25]} d4 {[%emt 0:11:39]} 16. Bc4 {[%emt 0:09:24]} Bb5 {[%emt 0:02:54]} 17. Bxb5 {[%emt 0:03:47]} Qxb5 {[%emt 0:00:43]} 18. Qd3 {[%emt 0:02:09]} Qxd3 {[%emt 0:07:04]} 19. Rxd3 {[%emt 0:00:40]} Nd5 {[%emt 0:00:04]} 20. f5 {[%emt 0:01:43]} Ne3 {[%emt 0:00:50]} 21. f6 {[%emt 0:01:58]} gxf6 {[%emt 0:14:27]} 22. exf6 {[%emt 0:01:27]} Rfe8 {[%emt 0:18:14]} 23. Ne5 {[%emt 0:05:06]} Red8 {[%emt 0:00:20]} 24. c4 {[%emt 0:03:37]} Rd6 {[%emt 0:16:17]} 25. Rb3 {[%emt 0:06:05]} Rb6 {[%emt 0:01:34]} 26. Rxb6 {[%emt 0:01:15]} axb6 {[%emt 0:00:00]} 27. a4 {[%emt 0:01:02]} Rd8 {[%emt 0:05:16]} 28. Kc1 {[%emt 0:01:57]} Ra8 {[%emt 0:02:34]} 29. b3 {[%emt 0:00:25]} Rd8 {[%emt 0:01:34]} 30. Kd2 {[%emt 0:00:55]} Rc8 {[%emt 0:00:50]} 31. Rg1 {[%emt 0:01:00]} Rc7 {[%emt 0:02:28]} 32. Kd3 {[%emt 0:01:38]} Kf8 {[%emt 0:00:31]} 33. h5 {[%emt 0:03:42]} Rb7 {[%emt 0:01:49]} 34. g5 {[%emt 0:01:47]} Nf5 {[%emt 0:00:45]} 35. Rh1 {[%emt 0:03:19]} Kg8 {[%emt 0:00:30]} 36. g6 {[%emt 0:01:42]} fxg6 {[%emt 0:00:53]} 37. hxg6 {[%emt 0:00:11]} hxg6 {[%emt 0:00:04]} 38. Nxg6 {[%emt 0:00:21]} Nd6 {[%emt 0:01:06]} 39. Ne5 {[%emt 0:03:22]} Ra7 {[%emt 0:03:51]} 40. Ng6 {[%emt 0:00:00]} Rb7 {[%emt 0:00:00]} 41. Rh6 {[%emt 0:16:46]} Nf7 {[%emt 0:11:02]} 42. Rh5 {[%emt 0:05:36]} Nd6 {[%emt 0:01:58]} 43. Rh6 {[%emt 0:01:49]} Nf7 {[%emt 0:10:12]} 44. Rh5 {[%emt 0:00:31]} 1/2-1/2